[Event "Schack-SM 2023: Veteran-SM 65+"]
[Site "Helsingborg Arena, Mellersta Stenbocksgatan 14, Helsingborg, Sweden"]
[Date "2023.07.02"]
[Round "2.3"]
[White "Franzen Hogberg, Thomas"]
[Black "Ivarsson, Torbjorn"]
[Result "1/2-1/2"]
[TimeControl "90 minutes for 40 moves + 30 minutes for the rest of games + 30 seconds per move from move one."]
[WhiteElo "1998"]
[BlackElo "2073"]

1. b3 {[%clk 01:30:49]} {[%emt 00:00:10]} c5 {[%clk 01:28:44]} {[%emt
00:02:16]} 2. Bb2 {[%clk 01:31:05]} {[%emt 00:00:14]} Nf6 {[%clk 01:28:28]}
{[%emt 00:00:46]} 3. e3 {[%clk 01:31:02]} {[%emt 00:00:33]} d5 {[%clk
01:27:40]} {[%emt 00:01:17]} 4. f4 {[%clk 01:31:16]} {[%emt 00:00:17]} Nc6
{[%clk 01:26:52]} {[%emt 00:01:19]} 5. Nf3 {[%clk 01:31:06]} {[%emt 00:00:39]}
Bf5 {[%clk 01:25:49]} {[%emt 00:01:33]} 6. Bb5 {[%clk 01:23:59]} {[%emt
00:07:37]} Qb6 {[%clk 01:22:16]} {[%emt 00:04:04]} 7. Bxc6+ {[%clk 01:21:26]}
{[%emt 00:03:02]} Qxc6 {[%clk 01:19:07]} {[%emt 00:03:38]} 8. O-O {[%clk
01:20:26]} {[%emt 00:01:31]} Bg4 {[%clk 01:14:26]} {[%emt 00:05:11]} 9. d3
{[%clk 01:09:56]} {[%emt 00:11:00]} g6 {[%clk 01:10:46]} {[%emt 00:04:10]} 10.
h3 {[%clk 01:07:26]} {[%emt 00:03:00]} Bxf3 {[%clk 01:10:57]} {[%emt 00:00:19]}
11. Qxf3 {[%clk 01:07:48]} {[%emt 00:00:08]} Bg7 {[%clk 01:10:55]} {[%emt
00:00:32]} 12. g4 {[%clk 01:04:00]} {[%emt 00:04:19]} O-O {[%clk 01:09:59]}
{[%emt 00:01:25]} 13. Be5 {[%clk 01:03:31]} {[%emt 00:01:00]} Nd7 {[%clk
01:07:55]} {[%emt 00:02:33]} 14. Bxg7 {[%clk 01:03:19]} {[%emt 00:00:42]} Kxg7
{[%clk 01:08:12]} {[%emt 00:00:12]} 15. c4 {[%clk 01:00:53]} {[%emt 00:02:57]}
Nb6 {[%clk 01:05:26]} {[%emt 00:03:16]} 16. Nc3 {[%clk 00:56:58]} {[%emt
00:04:26]} Rad8 {[%clk 01:05:00]} {[%emt 00:00:56]} 17. Rad1 {[%clk 00:51:10]}
{[%emt 00:06:17]} a6 {[%clk 00:54:08]} {[%emt 00:11:23]} 18. h4 {[%clk
00:35:35]} {[%emt 00:16:05]} Qf6 {[%clk 00:49:39]} {[%emt 00:04:58]} 19. Nxd5
{[%clk 00:35:23]} {[%emt 00:00:43]} Nxd5 {[%clk 00:48:25]} {[%emt 00:01:44]} 20.
cxd5 {[%clk 00:33:36]} {[%emt 00:02:17]} Qxh4 {[%clk 00:48:02]} {[%emt
00:00:52]} 21. Rf2 {[%clk 00:30:02]} {[%emt 00:04:04]} f5 {[%clk 00:44:08]}
{[%emt 00:04:24]} 22. Rg2 {[%clk 00:26:40]} {[%emt 00:03:53]} fxg4 {[%clk
00:43:54]} {[%emt 00:00:44]} 23. Rxg4 {[%clk 00:27:01]} {[%emt 00:00:08]} Qf6
{[%clk 00:37:34]} {[%emt 00:06:50]} 24. Qg2 {[%clk 00:22:08]} {[%emt 00:05:24]}
e6 {[%clk 00:31:07]} {[%emt 00:06:56]} 25. dxe6 {[%clk 00:19:01]} {[%emt
00:03:37]} Qxe6 {[%clk 00:27:47]} {[%emt 00:03:51]} 26. e4 {[%clk 00:16:54]}
{[%emt 00:02:37]} Rd6 {[%clk 00:23:30]} {[%emt 00:04:46]} 27. f5 {[%clk
00:14:10]} {[%emt 00:03:15]} Qe5 {[%clk 00:23:20]} {[%emt 00:00:39]} 28. Rg5
{[%clk 00:11:52]} {[%emt 00:02:48]} Rff6 {[%clk 00:19:05]} {[%emt 00:04:45]} 29.
Kh1 {[%clk 00:10:58]} {[%emt 00:01:24]} h6 {[%clk 00:16:53]} {[%emt 00:02:41]}
30. Rg3 {[%clk 00:11:15]} {[%emt 00:00:14]} g5 {[%clk 00:11:13]} {[%emt
00:06:11]} 31. Rg1 {[%clk 00:11:26]} {[%emt 00:00:18]} Kf7 {[%clk 00:10:54]}
{[%emt 00:00:50]} 32. Qh3 {[%clk 00:09:17]} {[%emt 00:02:38]} Ke7 {[%clk
00:10:58]} {[%emt 00:00:26]} 33. Rf3 {[%clk 00:07:21]} {[%emt 00:02:26]} Kd7
{[%clk 00:10:45]} {[%emt 00:00:42]} 34. Qg3 {[%clk 00:07:35]} {[%emt 00:00:17]}
Qxg3 {[%clk 00:10:06]} {[%emt 00:01:25]} 1/2-1/2

[Event "Schack-SM 2023: Veteran-SM 50+"]
[Site "Helsingborg Arena, Mellersta Stenbocksgatan 14, Helsingborg, Sweden"]
[Date "2023.07.02"]
[Round "2.3"]
[White "Eriksson, Bengt"]
[Black "Nilsson, Patrik 1968"]
[Result "0-1"]
[TimeControl "90 minutes for 40 moves + 30 minutes for the rest of games + 30 seconds per move from move one."]
[WhiteElo "2016"]
[BlackElo "1931"]

1. d4 {[%clk 01:30:20]} {[%emt 00:00:39]} d6 {[%clk 01:30:37]} {[%emt
00:00:23]} 2. c4 {[%clk 01:28:56]} {[%emt 00:01:54]} g6 {[%clk 01:30:42]}
{[%emt 00:00:25]} 3. e4 {[%clk 01:28:57]} {[%emt 00:00:29]} Bg7 {[%clk
01:30:41]} {[%emt 00:00:30]} 4. Nc3 {[%clk 01:28:20]} {[%emt 00:01:07]} Nf6
{[%clk 01:30:56]} {[%emt 00:00:15]} 5. Be2 {[%clk 01:27:45]} {[%emt 00:01:06]}
O-O {[%clk 01:31:09]} {[%emt 00:00:17]} 6. Bg5 {[%clk 01:26:46]} {[%emt
00:01:29]} Na6 {[%clk 01:29:55]} {[%emt 00:01:42]} 7. Qd2 {[%clk 01:25:05]}
{[%emt 00:02:12]} e5 {[%clk 01:29:22]} {[%emt 00:01:02]} 8. d5 {[%clk
01:23:42]} {[%emt 00:01:54]} Nc5 {[%clk 01:29:12]} {[%emt 00:00:40]} 9. f3
{[%clk 01:22:42]} {[%emt 00:01:30]} a5 {[%clk 01:29:10]} {[%emt 00:00:32]} 10.
O-O-O {[%clk 01:13:03]} {[%emt 00:10:10]} Bd7 {[%clk 01:23:21]} {[%emt
00:06:18]} 11. h4 {[%clk 01:03:03]} {[%emt 00:10:31]} Qe8 {[%clk 01:17:49]}
{[%emt 00:06:01]} 12. Nh3 {[%clk 00:57:11]} {[%emt 00:06:22]} Nh5 {[%clk
01:10:59]} {[%emt 00:07:20]} 13. g4 {[%clk 00:51:26]} {[%emt 00:07:47]} Ng3
{[%clk 01:09:51]} {[%emt 00:01:07]} 14. Rh2 {[%clk 00:49:45]} {[%emt 00:02:10]}
f6 {[%clk 01:08:08]} {[%emt 00:02:14]} 15. Be3 {[%clk 00:43:01]} {[%emt
00:07:14]} Nxe2+ {[%clk 01:01:29]} {[%emt 00:07:08]} 16. Qxe2 {[%clk 00:42:17]}
{[%emt 00:01:14]} a4 {[%clk 00:59:28]} {[%emt 00:02:32]} 17. Rg1 {[%clk
00:33:15]} {[%emt 00:09:30]} b5 {[%clk 00:54:10]} {[%emt 00:05:50]} 18. cxb5
{[%clk 00:32:06]} {[%emt 00:01:40]} Rb8 {[%clk 00:53:28]} {[%emt 00:01:11]} 19.
Bxc5 {[%clk 00:28:35]} {[%emt 00:04:01]} dxc5 {[%clk 00:53:25]} {[%emt
00:00:32]} 20. g5 {[%clk 00:27:42]} {[%emt 00:01:24]} Bxb5 {[%clk 00:50:54]}
{[%emt 00:03:00]} 21. Qe3 {[%clk 00:27:12]} {[%emt 00:01:00]} a3 {[%clk
00:44:49]} {[%emt 00:06:35]} 22. h5 {[%clk 00:20:07]} {[%emt 00:07:35]} axb2+
{[%clk 00:42:32]} {[%emt 00:02:48]} 23. Rxb2 {[%clk 00:19:31]} {[%emt
00:01:06]} f5 {[%clk 00:39:20]} {[%emt 00:03:42]} 24. exf5 {[%clk 00:19:14]}
{[%emt 00:00:48]} Rxf5 {[%clk 00:33:22]} {[%emt 00:06:27]} 25. Ne4 {[%clk
00:18:58]} {[%emt 00:00:45]} Bc4 {[%clk 00:31:11]} {[%emt 00:02:42]} 26. Qxc5
{[%clk 00:11:13]} {[%emt 00:08:15]} Rxb2 {[%clk 00:28:45]} {[%emt 00:02:57]} 27.
Kxb2 {[%clk 00:11:28]} {[%emt 00:00:14]} Qa4 {[%clk 00:25:24]} {[%emt
00:03:51]} 28. Ra1 {[%clk 00:00:54]} {[%emt 00:11:04]} Rxf3 {[%clk 00:21:32]}
{[%emt 00:04:21]} 29. h6 {[%clk 00:00:50]} {[%emt 00:00:35]} Rxh3 {[%clk
00:19:04]} {[%emt 00:02:58]} 30. hxg7 {[%clk 00:01:00]} {[%emt 00:00:20]} Rh2+
{[%clk 00:17:45]} {[%emt 00:01:47]} 31. Nf2 {[%clk 00:01:27]} {[%emt 00:00:05]}
Qb5+ {[%clk 00:17:19]} {[%emt 00:00:56]} 32. Qxb5 {[%clk 00:01:52]} {[%emt
00:00:05]} Bxb5 {[%clk 00:17:37]} {[%emt 00:00:12]} 33. a4 {[%clk 00:01:44]}
{[%emt 00:00:38]} Rxf2+ {[%clk 00:17:22]} {[%emt 00:00:44]} 34. Kb3 {[%clk
00:01:02]} {[%emt 00:01:13]} Ba6 {[%clk 00:15:49]} {[%emt 00:02:03]} 35. Re1
{[%clk 00:00:34]} {[%emt 00:00:56]} Re2 {[%clk 00:14:48]} {[%emt 00:01:32]} 36.
Rc1 {[%clk 00:00:55]} {[%emt 00:00:10]} Bb7 {[%clk 00:13:57]} {[%emt 00:01:21]}
37. Rxc7 {[%clk 00:01:04]} {[%emt 00:00:21]} Bxd5+ {[%clk 00:13:59]} {[%emt
00:00:28]} 38. Kc3 {[%clk 00:00:53]} {[%emt 00:00:41]} Ra2 {[%clk 00:13:28]}
{[%emt 00:01:00]} 39. Rc5 {[%clk 00:00:46]} {[%emt 00:00:37]} Bf7 {[%clk
00:12:46]} {[%emt 00:01:12]} 40. a5 {[%clk 00:00:35]} {[%emt 00:00:42]} e4
{[%clk 00:12:35]} {[%emt 00:00:40]} 41. Kb4 {[%clk 00:26:29]} {[%emt 00:04:36]}
e3 {[%clk 00:38:04]} {[%emt 00:05:00]} 42. Re5 {[%clk 00:25:43]} {[%emt
00:01:17]} e2 {[%clk 00:37:08]} {[%emt 00:01:26]} 43. Kb5 {[%clk 00:25:35]}
{[%emt 00:00:39]} Kxg7 {[%clk 00:35:28]} {[%emt 00:02:10]} 44. a6 {[%clk
00:24:46]} {[%emt 00:01:19]} Rb2+ {[%clk 00:34:16]} {[%emt 00:01:39]} 45. Kc6
{[%clk 00:23:47]} {[%emt 00:01:32]} Bc4 {[%clk 00:32:11]} {[%emt 00:02:32]} 46.
a7 {[%clk 00:22:30]} {[%emt 00:01:50]} Ra2 {[%clk 00:28:56]} {[%emt 00:03:42]}
47. Kc5 {[%clk 00:21:03]} {[%emt 00:02:00]} Ra5+ {[%clk 00:27:10]} {[%emt
00:02:15]} 48. Kxc4 {[%clk 00:19:37]} {[%emt 00:01:56]} Rxe5 {[%clk 00:27:21]}
{[%emt 00:00:19]} 49. a8=Q {[%clk 00:19:46]} {[%emt 00:00:21]} e1=Q {[%clk
00:27:32]} {[%emt 00:00:19]} 50. Qb7+ {[%clk 00:18:13]} {[%emt 00:02:04]} Re7
{[%clk 00:27:35]} {[%emt 00:00:25]} 51. Qb2+ {[%clk 00:18:16]} {[%emt
00:00:29]} Qe5 {[%clk 00:27:48]} {[%emt 00:00:16]} 0-1

[Event "Schack-SM 2023: Sverigemastarklassen"]
[Site "Helsingborg Arena, Mellersta Stenbocksgatan 14, Helsingborg, Sweden"]
[Date "2023.07.02"]
[Round "2.1"]
[White "Olsson, William"]
[Black "Sivuk, Vitaly"]
[Result "0-1"]
[TimeControl "90 minutes for 40 moves + 30 minutes for the rest of the game + 30 seconds per move from move one."]
[WhiteTitle "FM"]
[BlackTitle "GM"]
[WhiteElo "2383"]
[BlackElo "2432"]

1. c4 {[%clk 01:30:57]} {[%emt 00:00:03]} e6 {[%clk 01:30:48]} {[%emt
00:00:12]} 2. Nf3 {[%clk 01:31:13]} {[%emt 00:00:14]} d5 {[%clk 01:31:08]}
{[%emt 00:00:09]} 3. d4 {[%clk 01:31:10]} {[%emt 00:00:34]} Nf6 {[%clk
01:31:08]} {[%emt 00:00:30]} 4. g3 {[%clk 01:31:32]} {[%emt 00:00:08]} dxc4
{[%clk 01:28:25]} {[%emt 00:03:12]} 5. Bg2 {[%clk 01:28:34]} {[%emt 00:03:28]}
c6 {[%clk 01:26:25]} {[%emt 00:02:30]} 6. O-O {[%clk 01:28:01]} {[%emt
00:01:04]} b5 {[%clk 01:25:59]} {[%emt 00:00:55]} 7. Ne5 {[%clk 01:25:58]}
{[%emt 00:02:33]} Bb7 {[%clk 01:26:09]} {[%emt 00:00:20]} 8. a4 {[%clk
01:17:30]} {[%emt 00:08:59]} a6 {[%clk 01:26:10]} {[%emt 00:00:29]} 9. Nc3
{[%clk 01:16:09]} {[%emt 00:01:52]} Nd5 {[%clk 01:25:36]} {[%emt 00:01:02]} 10.
Ne4 {[%clk 01:07:00]} {[%emt 00:09:40]} Nd7 {[%clk 01:17:58]} {[%emt 00:08:07]}
11. b3 {[%clk 01:06:14]} {[%emt 00:01:16]} Nxe5 {[%clk 01:00:22]} {[%emt
00:18:06]} 12. dxe5 {[%clk 01:06:39]} {[%emt 00:00:06]} c3 {[%clk 00:59:25]}
{[%emt 00:01:27]} 13. Bg5 {[%clk 01:01:30]} {[%emt 00:05:39]} Qb8 {[%clk
00:54:40]} {[%emt 00:05:15]} 14. Nd6+ {[%clk 01:00:53]} {[%emt 00:01:08]} Bxd6
{[%clk 00:55:02]} {[%emt 00:00:08]} 15. exd6 {[%clk 01:01:17]} {[%emt
00:00:06]} f6 {[%clk 00:48:44]} {[%emt 00:06:48]} 16. Bc1 {[%clk 00:53:55]}
{[%emt 00:07:53]} Qxd6 {[%clk 00:44:42]} {[%emt 00:04:30]} 17. e4 {[%clk
00:53:56]} {[%emt 00:00:29]} b4 {[%clk 00:44:33]} {[%emt 00:00:38]} 18. exd5
{[%clk 00:49:54]} {[%emt 00:04:34]} cxd5 {[%clk 00:44:53]} {[%emt 00:00:09]} 19.
Qh5+ {[%clk 00:47:35]} {[%emt 00:02:49]} g6 {[%clk 00:45:11]} {[%emt 00:00:12]}
20. Qh6 {[%clk 00:45:04]} {[%emt 00:03:02]} O-O-O {[%clk 00:42:51]} {[%emt
00:02:49]} 21. Re1 {[%clk 00:40:58]} {[%emt 00:04:36]} e5 {[%clk 00:40:16]}
{[%emt 00:03:04]} 22. f4 {[%clk 00:36:56]} {[%emt 00:04:33]} e4 {[%clk
00:38:47]} {[%emt 00:01:59]} 23. f5 {[%clk 00:37:02]} {[%emt 00:00:24]} g5
{[%clk 00:38:29]} {[%emt 00:00:47]} 24. Qh5 {[%clk 00:35:22]} {[%emt 00:02:11]}
Rhe8 {[%clk 00:36:04]} {[%emt 00:02:55]} 25. Qg4 {[%clk 00:35:21]} {[%emt
00:00:32]} d4 {[%clk 00:32:56]} {[%emt 00:03:38]} 26. Bxe4 {[%clk 00:35:11]}
{[%emt 00:00:40]} Rxe4 {[%clk 00:32:09]} {[%emt 00:01:17]} 27. Rxe4 {[%clk
00:35:28]} {[%emt 00:00:14]} Qd5 {[%clk 00:32:26]} {[%emt 00:00:12]} 28. Re2
{[%clk 00:35:07]} {[%emt 00:00:51]} Qh1+ {[%clk 00:32:45]} {[%emt 00:00:11]}
0-1

[Event "Schack-SM 2023: Junior-SM"]
[Site "Helsingborg Arena, Mellersta Stenbocksgatan 14, Helsingborg, Sweden"]
[Date "2023.07.02"]
[Round "2.3"]
[White "Joensson, Oscar"]
[Black "Persson, Sebastian 2007"]
[Result "0-1"]
[TimeControl "90 minutes for 40 moves + 30 minutes for the rest of the game + 30 seconds per move from move one."]
[WhiteElo "2077"]
[BlackElo "1947"]

1. d4 {[%clk 01:30:57]} {[%emt 00:00:02]} d5 {[%clk 01:30:52]} {[%emt
00:00:09]} 2. c4 {[%clk 01:31:22]} {[%emt 00:00:05]} c6 {[%clk 01:31:17]}
{[%emt 00:00:05]} 3. Nf3 {[%clk 01:31:48]} {[%emt 00:00:04]} Nf6 {[%clk
01:31:41]} {[%emt 00:00:06]} 4. Qb3 {[%clk 01:32:14]} {[%emt 00:00:04]} e6
{[%clk 01:29:48]} {[%emt 00:02:22]} 5. g3 {[%clk 01:32:06]} {[%emt 00:00:39]}
Nbd7 {[%clk 01:29:52]} {[%emt 00:00:25]} 6. Bg2 {[%clk 01:32:17]} {[%emt
00:00:18]} Be7 {[%clk 01:29:53]} {[%emt 00:00:29]} 7. O-O {[%clk 01:32:23]}
{[%emt 00:00:24]} O-O {[%clk 01:29:55]} {[%emt 00:00:28]} 8. Bf4 {[%clk
01:20:49]} {[%emt 00:12:04]} Re8 {[%clk 01:26:20]} {[%emt 00:04:05]} 9. Rc1
{[%clk 01:15:30]} {[%emt 00:05:49]} Nf8 {[%clk 01:18:55]} {[%emt 00:07:56]} 10.
Ne5 {[%clk 01:00:11]} {[%emt 00:15:49]} N6d7 {[%clk 01:01:46]} {[%emt
00:17:38]} 11. Nxd7 {[%clk 00:32:54]} {[%emt 00:27:47]} Qxd7 {[%clk 00:59:58]}
{[%emt 00:02:18]} 12. Nd2 {[%clk 00:29:08]} {[%emt 00:04:16]} Ng6 {[%clk
00:58:17]} {[%emt 00:02:10]} 13. Be3 {[%clk 00:28:44]} {[%emt 00:00:55]} Bf6
{[%clk 00:46:02]} {[%emt 00:12:45]} 14. f4 {[%clk 00:26:25]} {[%emt 00:02:49]}
h5 {[%clk 00:40:22]} {[%emt 00:06:10]} 15. Nf3 {[%clk 00:25:11]} {[%emt
00:01:44]} b6 {[%clk 00:34:32]} {[%emt 00:06:21]} 16. Ne5 {[%clk 00:11:36]}
{[%emt 00:14:05]} Bxe5 {[%clk 00:34:18]} {[%emt 00:00:43]} 17. dxe5 {[%clk
00:10:47]} {[%emt 00:01:19]} Ba6 {[%clk 00:28:34]} {[%emt 00:06:15]} 18. Qa4
{[%clk 00:10:16]} {[%emt 00:01:01]} Bxc4 {[%clk 00:22:43]} {[%emt 00:06:20]} 19.
Rxc4 {[%clk 00:09:40]} {[%emt 00:01:06]} b5 {[%clk 00:23:06]} {[%emt 00:00:08]}
20. Qa6 {[%clk 00:10:02]} {[%emt 00:00:07]} bxc4 {[%clk 00:23:30]} {[%emt
00:00:07]} 21. Bc5 {[%clk 00:08:07]} {[%emt 00:02:25]} Reb8 {[%clk 00:17:58]}
{[%emt 00:06:02]} 22. Qa3 {[%clk 00:06:03]} {[%emt 00:02:34]} Rb5 {[%clk
00:16:49]} {[%emt 00:01:39]} 23. b4 {[%clk 00:03:49]} {[%emt 00:02:43]} a5
{[%clk 00:15:28]} {[%emt 00:01:52]} 24. Bd6 {[%clk 00:02:09]} {[%emt 00:02:10]}
Qb7 {[%clk 00:15:32]} {[%emt 00:00:26]} 25. Qf3 {[%clk 00:01:31]} {[%emt
00:01:07]} axb4 {[%clk 00:13:21]} {[%emt 00:02:42]} 26. f5 {[%clk 00:01:51]}
{[%emt 00:00:10]} exf5 {[%clk 00:12:41]} {[%emt 00:01:10]} 27. Qxf5 {[%clk
00:02:04]} {[%emt 00:00:16]} Re8 {[%clk 00:07:05]} {[%emt 00:06:06]} 28. a4
{[%clk 00:00:42]} {[%emt 00:01:53]} bxa3 {[%clk 00:06:52]} {[%emt 00:00:43]} 29.
Rxa3 {[%clk 00:00:34]} {[%emt 00:00:37]} Rb3 {[%clk 00:03:30]} {[%emt
00:03:52]} 30. Ra1 {[%clk 00:00:53]} {[%emt 00:00:11]} c3 {[%clk 00:02:47]}
{[%emt 00:01:13]} 31. Rf1 {[%clk 00:00:34]} {[%emt 00:00:49]} Rb2 {[%clk
00:02:42]} {[%emt 00:00:35]} 32. Rc1 {[%clk 00:00:38]} {[%emt 00:00:26]} Qb6+
{[%clk 00:01:54]} {[%emt 00:01:18]} 33. Kh1 {[%clk 00:00:50]} {[%emt 00:00:18]}
Qe3 {[%clk 00:02:14]} {[%emt 00:00:10]} 34. Rf1 {[%clk 00:00:41]} {[%emt
00:00:39]} Nh8 {[%clk 00:01:48]} {[%emt 00:00:57]} 35. e6 {[%clk 00:00:33]}
{[%emt 00:00:38]} Qxe6 {[%clk 00:01:54]} {[%emt 00:00:24]} 0-1

[Event "Schack-SM 2023: Mastarklassen"]
[Site "Helsingborg Arena, Mellersta Stenbocksgatan 14, Helsingborg, Sweden"]
[Date "2023.07.02"]
[Round "2.2"]
[White "Mashhadi, Peyman"]
[Black "Nilsson, Patrik 1978"]
[Result "0-1"]
[TimeControl "90 minutes for 40 moves + 30 minutes for the rest of games + 30 seconds per move from move one."]
[WhiteElo "2117"]
[BlackElo "2167"]

1. e4 {[%clk 01:30:55]} {[%emt 00:00:04]} e6 {[%clk 01:30:50]} {[%emt
00:00:10]} 2. d4 {[%clk 01:31:04]} {[%emt 00:00:20]} d5 {[%clk 01:31:09]}
{[%emt 00:00:11]} 3. e5 {[%clk 01:31:11]} {[%emt 00:00:24]} c5 {[%clk
01:31:29]} {[%emt 00:00:09]} 4. c3 {[%clk 01:31:34]} {[%emt 00:00:08]} Qb6
{[%clk 01:31:45]} {[%emt 00:00:13]} 5. Nf3 {[%clk 01:31:41]} {[%emt 00:00:23]}
Nc6 {[%clk 01:32:07]} {[%emt 00:00:09]} 6. a3 {[%clk 01:31:44]} {[%emt
00:00:27]} f6 {[%clk 01:32:00]} {[%emt 00:00:37]} 7. Bd3 {[%clk 01:31:18]}
{[%emt 00:00:55]} fxe5 {[%clk 01:31:13]} {[%emt 00:01:17]} 8. dxe5 {[%clk
01:30:59]} {[%emt 00:00:50]} c4 {[%clk 01:30:55]} {[%emt 00:00:48]} 9. Bc2
{[%clk 01:29:37]} {[%emt 00:01:52]} g6 {[%clk 01:31:05]} {[%emt 00:00:20]} 10.
O-O {[%clk 01:25:26]} {[%emt 00:04:41]} Bg7 {[%clk 01:31:04]} {[%emt 00:00:30]}
11. Qe2 {[%clk 01:22:41]} {[%emt 00:03:17]} Nge7 {[%clk 01:29:25]} {[%emt
00:02:07]} 12. Re1 {[%clk 01:12:58]} {[%emt 00:10:13]} O-O {[%clk 01:28:35]}
{[%emt 00:01:21]} 13. Nbd2 {[%clk 01:11:42]} {[%emt 00:01:47]} Bd7 {[%clk
01:18:27]} {[%emt 00:10:37]} 14. h3 {[%clk 01:09:17]} {[%emt 00:02:55]} Rac8
{[%clk 01:04:08]} {[%emt 00:14:50]} 15. Rb1 {[%clk 01:06:46]} {[%emt 00:03:01]}
Qc7 {[%clk 00:55:09]} {[%emt 00:09:29]} 16. Nf1 {[%clk 00:54:01]} {[%emt
00:13:13]} b5 {[%clk 00:50:03]} {[%emt 00:05:36]} 17. N1h2 {[%clk 00:50:10]}
{[%emt 00:04:21]} a5 {[%clk 00:42:39]} {[%emt 00:07:55]} 18. Bg5 {[%clk
00:42:46]} {[%emt 00:07:53]} d4 {[%clk 00:27:08]} {[%emt 00:16:02]} 19. cxd4
{[%clk 00:40:12]} {[%emt 00:03:03]} Nd5 {[%clk 00:27:01]} {[%emt 00:00:37]} 20.
Rbd1 {[%clk 00:31:21]} {[%emt 00:09:20]} Qb6 {[%clk 00:20:31]} {[%emt
00:07:01]} 21. Be4 {[%clk 00:28:14]} {[%emt 00:03:37]} Nce7 {[%clk 00:20:02]}
{[%emt 00:00:59]} 22. Ng4 {[%clk 00:25:40]} {[%emt 00:03:04]} Bc6 {[%clk
00:17:29]} {[%emt 00:03:04]} 23. Qd2 {[%clk 00:19:50]} {[%emt 00:06:19]} Nf5
{[%clk 00:10:51]} {[%emt 00:07:08]} 24. Nh6+ {[%clk 00:12:47]} {[%emt
00:07:34]} Kh8 {[%clk 00:08:47]} {[%emt 00:02:34]} 25. Rc1 {[%clk 00:07:25]}
{[%emt 00:05:52]} Bb7 {[%clk 00:04:07]} {[%emt 00:05:10]} 26. g4 {[%clk
00:05:07]} {[%emt 00:02:47]} Nxh6 {[%clk 00:04:09]} {[%emt 00:00:29]} 27. Bxh6
{[%clk 00:05:30]} {[%emt 00:00:06]} b4 {[%clk 00:03:53]} {[%emt 00:00:47]} 28.
Bxg7+ {[%clk 00:05:23]} {[%emt 00:00:37]} Kxg7 {[%clk 00:04:16]} {[%emt
00:00:06]} 29. Qg5 {[%clk 00:04:18]} {[%emt 00:01:35]} Nf4 {[%clk 00:03:12]}
{[%emt 00:01:35]} 30. Kh2 {[%clk 00:02:02]} {[%emt 00:02:45]} Bxe4 {[%clk
00:03:02]} {[%emt 00:00:40]} 31. Rxe4 {[%clk 00:02:11]} {[%emt 00:00:21]} Nd3
{[%clk 00:03:27]} {[%emt 00:00:05]} 32. Kg2 {[%clk 00:01:20]} {[%emt 00:01:21]}
Nxc1 {[%clk 00:03:22]} {[%emt 00:00:35]} 33. Qxc1 {[%clk 00:01:41]} {[%emt
00:00:10]} c3 {[%clk 00:03:37]} {[%emt 00:00:15]} 34. Ng5 {[%clk 00:01:03]}
{[%emt 00:01:08]} cxb2 {[%clk 00:03:09]} {[%emt 00:00:59]} 35. Qxb2 {[%clk
00:01:19]} {[%emt 00:00:14]} h6 {[%clk 00:01:58]} {[%emt 00:01:40]} 36. Nf3
{[%clk 00:01:31]} {[%emt 00:00:18]} b3 {[%clk 00:02:04]} {[%emt 00:00:25]} 37.
Re2 {[%clk 00:00:34]} {[%emt 00:01:28]} a4 {[%clk 00:01:59]} {[%emt 00:00:34]}
38. d5 {[%clk 00:00:45]} {[%emt 00:00:19]} Qc5 {[%clk 00:01:29]} {[%emt
00:01:01]} 39. Rd2 {[%clk 00:00:34]} {[%emt 00:00:40]} Qc4 {[%clk 00:01:00]}
{[%emt 00:01:00]} 0-1